bitfinex/quotes_BTCUSD_20250127
["timestamp","ask_amount","ask_price","bid_price","bid_amount"]
[1737999070972,0.200633,99685.0,99678.0,0.09734729]
[1737999071188,0.01967834,99704.0,99677.0,0.00029736]
[1737999071403,0.150484,99678.0,99677.0,0.00029736]
[1737999071623,0.15173817,99678.0,99677.0,0.00029736]
[1737999071847,0.15473817,99678.0,99677.0,0.00029736]
[1737999072262,0.15173817,99678.0,99677.0,0.00029736]
[1737999072492,0.47445068,99678.0,99677.0,0.00229736]
[1737999072702,0.150516,99657.0,99631.0,0.0468]
[1737999072908,0.150516,99657.0,99656.0,0.00043142]
[1737999073347,0.200672,99665.0,99656.0,0.00043142]
[1737999073551,0.30826931,99675.0,99656.0,0.00043142]
[1737999073552,0.150514,99659.0,99656.0,0.00043142]
[1737999073756,0.150516,99657.0,99656.0,0.00043142]
[1737999073956,0.15,99674.0,99656.0,0.00143142]
[1737999074162,0.20191035,99673.0,99656.0,0.00043142]
[1737999074379,0.150516,99657.0,99656.0,0.00043142]
[1737999074585,0.15177044,99657.0,99656.0,0.00043142]
[1737999074817,0.30177044,99657.0,99656.0,0.00043142]
[1737999075030,0.300516,99657.0,99656.0,0.00043142]
[1737999075558,0.49105149,99657.0,99656.0,0.00043142]
[1737999075767,1.7923208,99657.0,99656.0,0.00043142]
[1737999075983,1.7923208,99657.0,99611.0,0.00029715]
[1737999075984,0.150573,99619.0,99611.0,0.00029715]
[1737999076203,0.150573,99619.0,99618.0,0.00044533]
[1737999076372,0.15182802,99619.0,99618.0,0.00044533]
[1737999077236,0.30826931,99656.0,99618.0,0.09879262]
[1737999077398,0.150572,99620.0,99619.0,0.09734729]
[1737999077603,0.150573,99619.0,99618.0,0.00344533]
[1737999077832,0.150573,99619.0,99618.0,0.00044533]
[1737999078041,0.152573,99619.0,99618.0,0.00044533]
[1737999078213,0.15382788,99619.0,99618.0,0.00044533]
[1737999078448,0.16370141,99619.0,99618.0,0.00044533]
[1737999079032,0.4110487,99619.0,99618.0,0.00044533]
[1737999079243,0.40779382,99619.0,99618.0,0.00144533]
[1737999079664,0.41079382,99619.0,99618.0,0.00144533]
[1737999080018,0.43486273,99619.0,99618.0,0.00044533]
[1737999080323,0.40879382,99619.0,99618.0,0.00044533]
[1737999080519,0.41379382,99619.0,99618.0,0.00144533]
[1737999080752,0.8858502,99619.0,99618.0,0.00144533]
[1737999080978,0.300587,99610.0,99609.0,4.2e-07]
[1737999081182,0.39793429,99610.0,99609.0,4.2e-07]
[1737999081366,0.4220032,99610.0,99609.0,4.2e-07]
[1737999081923,0.4450032,99610.0,99609.0,4.2e-07]
[1737999082134,0.54235049,99610.0,99609.0,4.2e-07]
[1737999082346,0.8806198,99610.0,99609.0,4.2e-07]
[1737999082557,0.300623,99586.0,99585.0,0.00029715]
[1737999082729,0.300623,99586.0,99585.0,0.00079243]
[1737999083146,0.01,99579.0,99570.0,0.00029673]
[1737999083360,0.150667,99557.0,99545.0,0.00029673]
[1737999083562,0.17599175,99557.0,99545.0,0.00029673]
[1737999083773,0.150667,99557.0,99556.0,0.00044523]
[1737999085493,0.150665,99559.0,99556.0,0.00044523]
[1737999085898,0.200877,99563.0,99556.0,0.00044523]
[1737999085899,0.150667,99557.0,99556.0,0.00044523]
[1737999086341,0.35603486,99557.0,99556.0,0.00044523]
[1737999086555,0.300667,99557.0,99556.0,0.00044523]
[1737999086776,0.304667,99557.0,99556.0,0.00044523]
[1737999086982,0.31477987,99557.0,99556.0,0.00044523]
[1737999087188,0.31077987,99557.0,99556.0,0.00044523]
[1737999087400,0.40812716,99557.0,99556.0,0.00444523]
[1737999087615,0.16477987,99557.0,99556.0,0.00444523]
[1737999087831,0.004,99557.0,99556.0,0.00444523]
[1737999088075,0.004,99557.0,99556.0,0.00044523]
[1737999088076,0.154667,99557.0,99556.0,0.00044523]
[1737999088787,0.40327011,99557.0,99556.0,0.00144523]
[1737999089015,0.45394563,99557.0,99556.0,0.00144523]
[1737999089448,0.39801429,99557.0,99556.0,0.00144523]
[1737999089655,0.42501429,99557.0,99556.0,0.00144523]
[1737999089862,0.40201429,99557.0,99556.0,0.00144523]
[1737999090062,0.39801429,99557.0,99556.0,0.00044523]
[1737999090484,0.40301429,99557.0,99556.0,0.00144523]
[1737999090942,0.300667,99557.0,99556.0,0.00044523]
[1737999091158,0.1658833,99557.0,99556.0,0.00044523]
[1737999091563,0.1671391,99557.0,99556.0,0.00044523]
[1737999091987,0.1658833,99557.0,99556.0,0.00044523]
[1737999092206,0.155667,99557.0,99556.0,0.00044523]
[1737999092426,0.011,99557.0,99556.0,0.00144523]
[1737999092642,0.011,99557.0,99556.0,0.07894523]
[1737999092867,0.155667,99557.0,99556.0,0.00044523]
[1737999093084,0.15992274,99557.0,99556.0,0.00044523]
[1737999093300,0.30992274,99557.0,99556.0,0.00044523]
[1737999093518,0.308667,99557.0,99556.0,0.00044523]
[1737999093724,0.150667,99557.0,99556.0,0.00044523]
[1737999093952,0.16711796,99557.0,99556.0,0.00044523]
[1737999094409,0.16411796,99557.0,99556.0,0.00044523]
[1737999094615,0.16411796,99557.0,99556.0,0.00244523]
[1737999094839,0.16411796,99557.0,99556.0,0.00044523]
[1737999095273,0.52414065,99557.0,99556.0,2.3e-07]
[1737999095489,0.300682,99547.0,99545.0,0.00029673]
[1737999095719,0.39802929,99547.0,99546.0,0.00044534]
[1737999096188,0.323684,99546.0,99545.0,7e-08]
[1737999096402,0.54244749,99546.0,99545.0,7e-08]
[1737999097056,0.39803129,99546.0,99545.0,7e-08]
[1737999097685,0.303684,99546.0,99545.0,7e-08]
[1737999098306,0.300684,99546.0,99545.0,7e-08]
[1737999098526,0.16099725,99546.0,99545.0,7e-08]
[1737999098738,0.16525319,99546.0,99545.0,7e-08]
[1737999098954,0.153684,99546.0,99545.0,7e-08]
[1737999099169,0.15493977,99546.0,99545.0,7e-08]
[1737999099381,0.15993977,99546.0,99545.0,7e-08]
[1737999099826,0.16516531,99546.0,99545.0,7e-08]
[1737999100033,0.16216549,99546.0,99545.0,7e-08]
[1737999100250,0.16516549,99546.0,99545.0,7e-08]
[1737999100459,0.15693995,99546.0,99545.0,7e-08]
[1737999100689,0.15193995,99546.0,99545.0,7e-08]
[1737999100897,0.15471425,99546.0,99545.0,7e-08]
[1737999101610,0.00625595,99546.0,99545.0,7e-08]
[1737999101837,0.155684,99546.0,99545.0,0.00100007]
[1737999102045,0.15693977,99546.0,99545.0,0.00100007]
[1737999102463,0.15193977,99546.0,99545.0,0.00100007]
[1737999102684,0.15493977,99546.0,99545.0,0.00100007]
[1737999103309,0.15193977,99546.0,99545.0,7e-08]
[1737999103511,0.15693993,99546.0,99545.0,7e-08]
[1737999103724,0.15993993,99546.0,99545.0,7e-08]
[1737999103925,0.15193993,99546.0,99545.0,7e-08]
[1737999104384,0.15893993,99546.0,99545.0,7e-08]
[1737999105154,0.15593993,99546.0,99545.0,7e-08]
[1737999105293,0.154684,99546.0,99545.0,7e-08]
[1737999105522,0.15193997,99546.0,99545.0,7e-08]
[1737999105963,0.15593997,99546.0,99545.0,7e-08]
[1737999106309,0.15193997,99546.0,99545.0,7e-08]
[1737999106506,0.15493997,99546.0,99545.0,7e-08]
[1737999106962,0.15893997,99546.0,99545.0,7e-08]
[1737999108985,0.15878658,99546.0,99545.0,7e-08]
[1737999109181,0.15478658,99546.0,99545.0,7e-08]
[1737999109533,0.15878658,99546.0,99545.0,7e-08]
[1737999109778,0.46419048,99546.0,99545.0,7e-08]
[1737999109989,0.45893449,99546.0,99545.0,7e-08]
[1737999110411,0.46293449,99546.0,99545.0,7e-08]
[1737999110616,0.4048779,99546.0,99545.0,7e-08]
[1737999110831,0.30753061,99546.0,99545.0,7e-08]
[1737999111030,0.15353061,99546.0,99545.0,7e-08]
[1737999111235,0.15478661,99546.0,99545.0,7e-08]
[1737999111647,0.15178661,99546.0,99545.0,7e-08]
[1737999112021,0.15678661,99546.0,99545.0,7e-08]
[1737999112362,0.16178661,99546.0,99545.0,0.00100007]
[1737999112803,0.1570844,99546.0,99545.0,7e-08]
[1737999113006,0.43230595,99546.0,99545.0,7e-08]
[1737999113219,0.45904995,99546.0,99545.0,0.00100007]
[1737999113398,0.45404995,99546.0,99545.0,0.00100007]
[1737999113601,0.150713,99527.0,99518.0,0.00018804]
[1737999113834,0.150699,99536.0,99535.0,0.00014864]
[1737999114059,0.15195504,99536.0,99535.0,0.00014864]
[1737999114943,0.150699,99536.0,99535.0,0.00014864]
[1737999115390,0.15195497,99536.0,99535.0,0.00014864]
[1737999115715,0.15295497,99536.0,99535.0,0.00014864]
[1737999115932,0.155699,99536.0,99535.0,0.00014864]
[1737999116442,0.151699,99536.0,99535.0,0.00014864]
[1737999116819,0.153699,99536.0,99535.0,0.00014864]
[1737999117222,0.150699,99536.0,99535.0,0.00114864]
[1737999117605,0.152699,99536.0,99535.0,0.00014864]
[1737999117782,0.15395498,99536.0,99535.0,0.00414864]
[1737999118650,0.16388951,99536.0,99535.0,0.00414864]
[1737999118857,0.2612368,99536.0,99535.0,0.00414864]
[1737999119057,0.25998082,99536.0,99535.0,0.00414864]
[1737999119653,0.25798082,99536.0,99535.0,0.00414864]
[1737999120062,0.41198082,99536.0,99535.0,0.00014864]
[1737999120267,0.41398082,99536.0,99535.0,0.00014864]
[1737999121906,0.52057995,99536.0,99535.0,6.4e-07]
[1737999122167,0.54057995,99536.0,99535.0,6.4e-07]
[1737999122383,0.398724,99519.0,99518.0,4e-08]
[1737999122599,0.398724,99519.0,99504.0,0.08937239]
[1737999122600,0.150746,99505.0,99504.0,0.08937239]
[1737999122726,0.150746,99505.0,99491.0,0.01666667]
[1737999122727,0.150762,99494.0,99493.0,0.08937239]
[1737999123162,0.15201848,99494.0,99493.0,0.08937239]
[1737999123360,0.150762,99494.0,99493.0,0.08937239]
[1737999124207,0.151762,99494.0,99493.0,0.09437239]
[1737999124395,0.151762,99494.0,99493.0,0.08937239]
[1737999124775,0.151762,99494.0,99493.0,0.09237239]
[1737999124975,0.16197767,99494.0,99493.0,0.09237239]
[1737999125197,0.16197767,99494.0,99493.0,0.08937239]
[1737999125599,0.16097767,99494.0,99493.0,0.08937239]
[1737999126038,0.16297767,99494.0,99493.0,0.08937239]
[1737999126461,0.16297767,99494.0,99493.0,0.09237239]
[1737999126677,0.01221567,99494.0,99493.0,0.003]
[1737999126894,0.002,99494.0,99493.0,0.0822]
[1737999127308,0.00989201,99499.0,99495.0,0.15076]
[1737999127522,0.02001933,99521.0,99493.0,0.37756529]
[1737999127732,0.001,99494.0,99493.0,0.43126529]
[1737999127939,0.001,99494.0,99493.0,0.22624729]
[1737999128356,0.002,99494.0,99493.0,0.23324729]
[1737999128770,0.001,99494.0,99493.0,0.23324729]
[1737999128975,0.001,99494.0,99493.0,0.1359]
[1737999129782,0.200983,99511.0,99493.0,0.1359]
[1737999129783,0.200948,99528.0,99512.0,0.150734]
[1737999129989,0.00029779,99546.0,99493.0,0.22624729]
[1737999129990,0.00029779,99546.0,99514.0,0.0812]
[1737999130201,0.00029779,99546.0,99525.0,0.150715]
[1737999130411,0.01054633,99546.0,99520.0,0.200964]
[1737999130624,0.01054633,99546.0,99521.0,0.09734729]
[1737999130839,0.01054633,99546.0,99517.0,0.0466]
[1737999130840,0.150726,99518.0,99517.0,0.0466]
[1737999131255,0.150726,99518.0,99514.0,0.0812]
[1737999131256,0.150726,99518.0,99514.0,0.0822]
[1737999131473,0.150726,99518.0,99492.0,0.22163625]
[1737999131474,0.150747,99504.0,99503.0,0.1304]
[1737999131898,0.200953,99526.0,99503.0,0.13054875]
[1737999132103,0.005,99528.0,99503.0,0.13054875]
[1737999132318,0.150715,99526.0,99504.0,0.24734729]
[1737999132530,0.30826931,99535.0,99517.0,0.150727]
[1737999132742,0.150726,99518.0,99517.0,0.09734729]
[1737999133169,0.200961,99522.0,99515.0,0.0778]
[1737999133388,0.30826931,99535.0,99525.0,0.200953]
[1737999133596,0.00729779,99546.0,99526.0,0.09734729]
[1737999133813,0.00998328,99539.0,99529.0,0.200946]
[1737999134001,0.150696,99539.0,99532.0,0.150704]
[1737999134153,0.150698,99537.0,99530.0,0.150707]
[1737999134522,0.150698,99537.0,99527.0,0.0471]
[1737999134523,0.00029779,99546.0,99531.0,0.09734729]
[1737999134762,0.150686,99545.0,99540.0,0.150691]
[1737999134980,0.00129779,99546.0,99545.0,0.150685]
[1737999135192,0.00129779,99546.0,99545.0,0.44673229]
[1737999135193,0.00029779,99546.0,99545.0,0.44673229]
[1737999135398,0.00029779,99546.0,99545.0,0.52663229]
[1737999135606,0.200838,99583.0,99569.0,0.150649]
[1737999135812,0.0098618,99586.0,99569.0,0.32789629]
[1737999136016,0.200839,99583.0,99569.0,0.32789629]
[1737999136229,0.00044586,99570.0,99569.0,0.37659629]
[1737999136448,0.00044586,99570.0,99569.0,0.54959629]
[1737999136660,0.08878615,99612.0,99586.0,0.0787]
[1737999136869,0.08878615,99612.0,99611.0,0.150585]
[1737999136870,0.08928183,99612.0,99611.0,0.150585]
[1737999137088,0.08928183,99612.0,99611.0,0.39793229]
[1737999137537,0.08928183,99612.0,99611.0,0.52373229]
[1737999137750,0.08928183,99612.0,99611.0,0.54673229]
[1737999137954,0.00029779,99646.0,99634.0,0.150551]
[1737999138165,0.0004464,99635.0,99634.0,0.39789829]
[1737999138586,0.0004464,99635.0,99634.0,0.42089829]
[1737999139017,0.0004464,99635.0,99634.0,0.39789829]
[1737999139265,0.01462145,99640.0,99639.0,0.310543]
[1737999139457,0.00029758,99670.0,99639.0,0.310543]
[1737999139458,0.00029758,99670.0,99655.0,0.323519]
[1737999139722,0.00029758,99670.0,99655.0,0.42086629]
[1737999139968,0.00029758,99670.0,99655.0,0.47516629]
[1737999140177,0.0882207,99687.0,99656.0,0.15]
[1737999140386,0.0001485,99670.0,99657.0,0.200688]
[1737999140587,0.0001485,99670.0,99658.0,0.15]
[1737999140793,0.0001485,99670.0,99667.0,0.200667]
[1737999141039,0.0001485,99670.0,99669.0,0.150498]
[1737999141290,0.0001485,99670.0,99669.0,0.24784529]
[1737999141500,0.0001485,99670.0,99669.0,0.09734729]
[1737999141705,0.0001485,99670.0,99669.0,0.24784529]
[1737999141917,0.0001485,99670.0,99669.0,0.39784529]
[1737999142557,0.02052966,99714.0,99669.0,0.39784529]
[1737999142558,0.150477,99683.0,99672.0,0.15]
[1737999142767,0.150476,99684.0,99673.0,0.09734729]
[1737999143006,0.150473,99686.0,99677.0,0.150485]
[1737999143220,0.02052966,99714.0,99678.0,0.09734729]
[1737999143221,0.200585,99708.0,99678.0,0.09734729]
[1737999143430,0.150474,99685.0,99678.0,0.09734729]
[1737999143639,0.00125395,99707.0,99678.0,0.09734729]
[1737999144483,0.150483,99679.0,99678.0,0.09834729]
[1737999144695,0.09734729,99706.0,99656.0,0.200689]
[1737999144963,0.00049519,99708.0,99681.0,0.150479]
[1737999145188,0.003,99686.0,99682.0,0.09734729]
[1737999145621,0.008,99707.0,99682.0,0.09734729]
[1737999145756,0.15047,99688.0,99682.0,0.09734729]
[1737999145953,0.01,99734.0,99682.0,0.09734729]
[1737999146187,0.00125392,99713.0,99682.0,0.09734729]
[1737999146408,0.002,99686.0,99682.0,0.09734729]
[1737999146591,0.002,99686.0,99685.0,0.150473]
[1737999146765,0.00229758,99686.0,99685.0,0.24782029]
[1737999147376,0.00229758,99686.0,99685.0,0.09734729]
[1737999147773,0.00229758,99686.0,99685.0,0.24782029]
[1737999148174,0.00229758,99686.0,99685.0,0.09734729]
[1737999148378,0.00029758,99686.0,99685.0,0.24782029]
[1737999149012,0.00029758,99686.0,99685.0,0.24882029]
[1737999149436,0.00029758,99686.0,99685.0,0.50222029]
[1737999149634,0.00229758,99686.0,99685.0,0.50222029]
[1737999150266,0.00229758,99686.0,99685.0,0.51214733]
[1737999150477,0.00029758,99686.0,99685.0,0.51214733]
[1737999150825,0.00014969,99686.0,99685.0,0.51114733]
[1737999151347,0.00114969,99686.0,99685.0,0.52014733]
[1737999151572,0.00049519,99708.0,99685.0,0.52014733]
[1737999151573,0.00049519,99708.0,99707.0,0.15044]
[1737999151802,0.00049519,99708.0,99707.0,0.24778729]
[1737999152013,0.00049519,99708.0,99707.0,0.27078729]
[1737999152188,0.00049519,99708.0,99707.0,0.42078729]
[1737999152391,0.0001415,99731.0,99720.0,0.03]
[1737999152624,0.00028993,99731.0,99730.0,0.39775329]
[1737999152800,0.00028993,99731.0,99730.0,0.42075329]
[1737999154667,0.00028993,99731.0,99730.0,0.49745329]
[1737999155047,0.00028993,99731.0,99730.0,0.57393134]
[1737999155278,0.00028993,99731.0,99730.0,0.57893134]
[1737999155472,0.00028993,99731.0,99730.0,0.57393134]
[1737999155678,0.00028993,99731.0,99730.0,0.58193134]
[1737999156085,5.118e-05,99757.0,99755.0,0.300368]
[1737999156452,5.118e-05,99757.0,99755.0,0.55291529]
[1737999156645,5.118e-05,99757.0,99755.0,0.54291529]
[1737999156835,5.118e-05,99757.0,99755.0,0.56275524]
[1737999157278,5.118e-05,99757.0,99755.0,0.54291529]
[1737999157898,5.118e-05,99757.0,99755.0,0.51991529]
[1737999158126,5.118e-05,99757.0,99755.0,0.54291529]
[1737999158338,5.118e-05,99757.0,99755.0,0.55191529]
[1737999158514,5.118e-05,99757.0,99755.0,0.54291529]
[1737999158936,5.118e-05,99757.0,99755.0,0.55191529]
[1737999159154,0.00129736,99756.0,99755.0,0.54291529]
[1737999159618,0.00029736,99756.0,99755.0,0.55191529]
[1737999159821,0.2217248,99800.0,99758.0,0.15]
[1737999160029,0.15047235,99785.0,99774.0,0.200451]
[1737999160305,0.00014835,99785.0,99775.0,0.09734729]
[1737999160514,0.00014835,99785.0,99755.0,0.1312]
[1737999160515,0.00125274,99784.0,99755.0,0.0841]
[1737999160711,0.200431,99785.0,99776.0,0.09734729]
[1737999160855,0.03138631,99800.0,99776.0,0.09734729]
[1737999161054,0.150328,99782.0,99776.0,0.09734729]
[1737999161257,0.26817883,99810.0,99776.0,0.09734729]
[1737999161471,0.0658,99819.0,99776.0,0.09734729]
[1737999161472,0.26817883,99800.0,99776.0,0.09734729]
[1737999161674,0.150303,99798.0,99776.0,0.09734729]
[1737999161875,0.150324,99785.0,99776.0,0.24768329]
[1737999162103,0.150324,99784.0,99776.0,0.24768329]
[1737999162301,0.00125274,99797.0,99776.0,0.09734729]
[1737999162518,0.003,99785.0,99776.0,0.09834729]
[1737999162724,0.150341,99773.0,99734.0,0.01]
[1737999162921,0.01001323,99797.0,99769.0,0.150346]
[1737999163243,0.200441,99780.0,99770.0,0.09734729]
[1737999163440,0.150339,99775.0,99770.0,0.09734729]
[1737999163590,0.150344,99771.0,99770.0,0.09734729]
[1737999164018,0.150356,99763.0,99755.0,0.00114835]
[1737999164226,0.150365,99757.0,99756.0,0.09734729]
[1737999164425,0.150366,99756.0,99755.0,0.00114835]
[1737999165256,0.200477,99762.0,99755.0,0.09849564]
[1737999165461,0.150359,99761.0,99756.0,0.10134729]
[1737999165615,0.150354,99764.0,99756.0,0.09734729]
[1737999165821,0.001,99771.0,99756.0,0.09734729]
[1737999166224,0.200424,99789.0,99761.0,0.09734729]
[1737999166460,0.150329,99781.0,99774.0,0.150339]
[1737999166658,0.150327,99783.0,99775.0,0.09734729]
[1737999166910,0.0765,99821.0,99775.0,0.09734729]
[1737999166911,0.150318,99788.0,99775.0,0.09734729]
[1737999167065,0.200419,99791.0,99778.0,0.150333]
[1737999167261,0.200392,99804.0,99779.0,0.09734729]
[1737999167467,0.150329,99781.0,99779.0,0.09734729]
[1737999167920,0.200426,99787.0,99779.0,0.09734729]
[1737999168122,0.150337,99776.0,99771.0,0.15]
[1737999168329,0.150332,99779.0,99778.0,0.002]
[1737999168556,0.006,99789.0,99778.0,0.09734729]
[1737999168757,0.150319,99788.0,99779.0,0.09734729]
[1737999168959,0.21044315,99795.0,99779.0,0.10034729]
[1737999169208,0.153314,99791.0,99784.0,0.150324]
[1737999169400,0.003,99791.0,99790.0,0.150315]
[1737999169606,0.003,99791.0,99790.0,0.24766229]
[1737999169820,0.150311,99794.0,99790.0,0.09734729]
[1737999170030,0.150311,99794.0,99790.0,0.09724729]
[1737999170277,0.200402,99800.0,99790.0,0.09724729]
[1737999170448,0.0098049,99808.0,99790.0,0.09724729]
[1737999170449,0.15029,99807.0,99790.0,0.09724729]
[1737999170702,0.0098049,99808.0,99790.0,0.09724729]
[1737999170703,0.150306,99796.0,99790.0,0.09724729]
[1737999170907,0.00049439,99808.0,99790.0,0.09724729]
[1737999171113,0.130312,99793.0,99790.0,0.09724729]
[1737999171326,0.00049439,99808.0,99790.0,0.09724729]
[1737999171549,0.150308,99795.0,99790.0,0.09724729]
[1737999171773,0.150309,99794.0,99790.0,0.09724729]
[1737999171980,0.150297,99802.0,99796.0,0.150305]
[1737999172190,0.20087939,99808.0,99797.0,0.24765129]
[1737999172412,0.150298,99802.0,99797.0,0.09734729]
[1737999172633,0.00349439,99808.0,99797.0,0.09734729]
[1737999172867,0.150303,99798.0,99797.0,0.09734729]
[1737999173085,0.00049439,99808.0,99801.0,0.150298]
[1737999173319,0.00049439,99808.0,99802.0,0.09734729]
[1737999173527,0.150292,99806.0,99802.0,0.09734729]
[1737999173942,0.00449439,99808.0,99802.0,0.09734729]
[1737999174171,0.00449439,99808.0,99791.0,0.15]
[1737999174172,0.00449439,99808.0,99782.0,0.15]
[1737999174380,0.00125258,99807.0,99783.0,0.09734729]
[1737999174791,0.150315,99791.0,99783.0,0.09734729]
[1737999174999,0.00449439,99808.0,99783.0,0.09734729]
[1737999175000,0.200422,99789.0,99783.0,0.09734729]
[1737999175214,0.150324,99784.0,99783.0,0.09734729]
[1737999175710,0.15033,99780.0,99760.0,0.15036]
[1737999175904,0.15033,99780.0,99759.0,0.0823]
[1737999176027,0.15033,99780.0,99760.0,0.15]
[1737999176431,0.15033,99780.0,99762.0,0.15]
[1737999176676,0.200434,99783.0,99761.0,0.15]
[1737999176887,0.15033,99780.0,99763.0,0.15]
[1737999177292,0.15333,99780.0,99763.0,0.15]
[1737999177942,0.15098336,99780.0,99761.0,0.15]
[1737999178146,0.15098336,99780.0,99765.0,0.15]
[1737999178580,0.003,99780.0,99779.0,0.09764444]
[1737999178976,0.003,99780.0,99779.0,0.09864444]
[1737999179441,0.200406,99798.0,99779.0,0.09864444]
[1737999179442,0.01012432,99802.0,99779.0,0.09864444]
[1737999179645,0.15033,99780.0,99779.0,0.00129715]
[1737999179842,0.15233,99780.0,99779.0,0.00029715]
[1737999180257,0.15033,99780.0,99779.0,0.00129715]
[1737999180675,0.15158285,99780.0,99779.0,0.00129715]
[1737999180891,0.15158285,99780.0,99779.0,1.5e-07]
[1737999180892,0.18260917,99780.0,99779.0,1.5e-07]
[1737999181097,0.300674,99776.0,99724.0,0.1271]
[1737999181302,0.300674,99776.0,99726.0,0.200549]
[1737999181303,0.150385,99744.0,99726.0,0.200549]
[1737999181513,0.200465,99768.0,99728.0,0.200545]
[1737999181514,0.350467,99767.0,99728.0,0.200545]
[1737999181710,0.200469,99766.0,99729.0,0.09734729]
[1737999181947,0.15,99767.0,99733.0,0.1504]
[1737999182075,0.0012532,99765.0,99734.0,0.09734729]
[1737999182277,0.150383,99745.0,99734.0,0.09734729]
[1737999182478,0.15,99767.0,99734.0,0.09749564]
[1737999182479,0.200469,99766.0,99734.0,0.09749564]
[1737999182683,0.50083,99793.0,99734.0,0.09749564]
[1737999182684,0.150398,99735.0,99734.0,0.09749564]
[1737999182934,0.001,99744.0,99734.0,0.09749564]
[1737999183242,0.21032885,99767.0,99734.0,0.09749564]
[1737999183531,0.004,99765.0,99734.0,0.09749564]
[1737999183859,0.150377,99749.0,99734.0,0.09749564]
[1737999184089,0.150396,99737.0,99734.0,0.09749564]
[1737999184310,0.200522,99740.0,99734.0,0.09749564]
[1737999184520,0.17383121,99760.0,99734.0,0.09749564]
[1737999184521,0.150398,99735.0,99734.0,0.00014835]
[1737999184727,0.15165157,99735.0,99734.0,0.00014835]
[1737999185151,0.150398,99735.0,99734.0,0.00914835]
[1737999185368,0.001,99735.0,99734.0,0.10649564]
[1737999185627,0.001,99735.0,99734.0,0.09749564]
[1737999185834,0.001,99735.0,99734.0,0.10049564]
[1737999186011,0.002,99744.0,99734.0,0.09749564]
[1737999186224,0.01011444,99745.0,99735.0,0.09734729]
[1737999186444,0.01011444,99745.0,99734.0,0.00030199]
[1737999186445,0.17383121,99780.0,99737.0,0.09734729]
[1737999186885,0.00125304,99779.0,99737.0,0.09734729]
[1737999187305,0.01965845,99782.0,99751.0,0.09734729]
[1737999187518,0.01965845,99782.0,99753.0,0.09734729]
[1737999187755,0.02,99824.0,99738.0,0.00015364]
[1737999187756,0.17383121,99820.0,99764.0,0.09734729]
[1737999187970,0.17383121,99820.0,99766.0,0.09734729]
[1737999188182,0.17383121,99810.0,99766.0,0.09734729]
[1737999188315,0.17383121,99810.0,99766.0,0.09750093]
[1737999188534,0.17383121,99810.0,99767.0,0.173]
[1737999188738,0.01015334,99809.0,99767.0,0.173]
[1737999188961,0.00125251,99808.0,99768.0,0.0806]
[1737999189165,0.00125251,99808.0,99769.0,0.023]
[1737999189364,0.00163589,99809.0,99772.0,0.023]
[1737999189563,0.00163589,99809.0,99780.0,0.023]
[1737999189786,0.00063589,99809.0,99793.0,0.09734729]
[1737999190141,0.00125235,99808.0,99793.0,0.09734729]
[1737999190351,0.00125235,99808.0,99781.0,0.15]
[1737999190561,0.17383121,99800.0,99794.0,0.00015364]
[1737999190955,0.00125267,99799.0,99794.0,0.00015364]
[1737999191871,0.00125267,99799.0,99794.0,0.00215364]
[1737999192356,0.001,99808.0,99795.0,0.09734729]
[1737999192585,0.00063589,99809.0,99795.0,0.09734729]
[1737999192818,0.00063589,99809.0,99796.0,0.00015364]
[1737999193016,0.002,99799.0,99797.0,0.09734729]
[1737999193761,0.002,99799.0,99798.0,0.00015364]
[1737999193985,0.002,99799.0,99798.0,0.09750093]
[1737999194158,0.0001415,99799.0,99798.0,0.09750093]
[1737999195046,0.0001415,99799.0,99798.0,0.09950093]
[1737999195489,0.0021415,99799.0,99798.0,0.09750093]
[1737999195707,0.0021415,99799.0,99798.0,0.09950093]
[1737999195940,0.0021415,99799.0,99798.0,0.09750093]
[1737999195941,0.0001415,99799.0,99798.0,0.09750093]
[1737999196172,0.0011415,99799.0,99798.0,0.36050093]
[1737999196385,0.00063589,99809.0,99808.0,0.023]
[1737999196606,0.00063589,99809.0,99808.0,0.28034729]
[1737999196809,0.00063589,99809.0,99808.0,0.36334729]
[1737999197308,0.0001415,99818.0,99813.0,0.01]
[1737999197516,0.00401,99882.0,99836.0,0.01]
[1737999197713,0.00998491,99885.0,99855.0,0.09734729]
[1737999197924,0.17508279,99910.0,99855.0,0.09734729]
[1737999197925,0.00028981,99856.0,99855.0,0.09734729]
[1737999198364,9.617e-05,99856.0,99855.0,0.30034729]
[1737999198634,0.0489,99929.0,99856.0,0.203]
[1737999198852,0.0489,99929.0,99869.0,0.02]
[1737999199066,0.00987736,99914.0,99870.0,0.28034729]
[1737999199278,0.01047278,99932.0,99870.0,0.28034729]
[1737999199488,0.01047278,99932.0,99883.0,0.01]
[1737999199705,0.01047278,99932.0,99887.0,0.01]
[1737999199925,0.00028973,99899.0,99898.0,0.09734729]
[1737999200725,0.00028973,99899.0,99884.0,0.01998614]
[1737999200897,0.00028973,99899.0,99863.0,0.049]
[1737999200898,0.00028973,99899.0,99885.0,0.09734729]
[1737999201126,0.00028973,99899.0,99856.0,0.0874]
[1737999201312,0.001,99871.0,99870.0,0.002]
[1737999201516,0.001,99871.0,99870.0,0.09934729]
[1737999201837,0.023,99897.0,99870.0,0.09734729]
[1737999202039,0.00128973,99899.0,99871.0,0.09734729]
[1737999202250,0.00125157,99898.0,99871.0,0.09734729]
[1737999202595,0.00125157,99898.0,99857.0,0.15]
[1737999202596,0.17383121,99890.0,99844.0,0.08760753]
[1737999202779,0.002,99871.0,99845.0,0.09734729]
[1737999202979,0.002,99871.0,99870.0,0.001]
[1737999203179,0.002,99871.0,99870.0,0.09834729]
[1737999204358,0.01243099,99889.0,99870.0,0.09824729]
[1737999204659,0.005,99898.0,99871.0,0.09734729]
[1737999204920,0.00125152,99896.0,99871.0,0.09734729]
[1737999205310,0.0009955,99900.0,99871.0,0.09734729]
[1737999205311,0.01304692,99899.0,99871.0,0.09734729]
[1737999205734,0.00125151,99898.0,99871.0,0.09734729]
[1737999206357,0.00725151,99898.0,99871.0,0.09734729]
[1737999207212,0.00725151,99898.0,99877.0,0.09734729]
[1737999207213,0.006,99898.0,99877.0,0.09734729]
[1737999207422,0.0061415,99898.0,99887.0,0.09734729]
[1737999207848,0.0001415,99898.0,99887.0,0.09734729]
[1737999208072,0.005,99896.0,99893.0,0.09734729]
[1737999208491,0.0061415,99898.0,99893.0,0.09734729]
[1737999208706,0.0001415,99898.0,99893.0,0.09734729]
[1737999208920,0.0011415,99898.0,99893.0,0.09734729]
[1737999209255,0.0001415,99898.0,99893.0,0.09734729]